Cogmind - Beta 14 @@@ ROGUE MODE // 2025.01.11 @ 16:09:54 Player: Anting Result: Destroyed by G-47 Trooper with Particle Gun Performance ------------- Evolutions (0) 0 Regions Visited (1) 200 Robots Destroyed (11) 55 Value Destroyed (155) 155 Prototype IDs (0) 0 Alien Tech Used (0) 0 Bonus (0) 0 TOTAL SCORE: 410 Bonus ------- None Cogmind --------- Core Integrity 0/250 Matter 263/300 Energy 100/100 System Corruption 0% Temperature Cool (9) Movement Core (1350) Ox26 Location -10/Materials Parts ------- > --- POWER (1) -------- (None) > --- PROPULSION (2) --- (None) > --- UTILITY (2) ------ Huge Storage Unit > --- WEAPON (2) ------- (None) > --- INVENTORY (25) --- Light Ion Engine Light Ion Engine Light Treads Medium Matter Pod (0) Seismic Detector Light Assault Rifle Grenade Launcher Grenade Launcher Grenade Launcher Grenade Launcher Peak State ------------ > --- POWER ------------ Ion Engine > --- PROPULSION ------- Aluminum Leg Aluminum Leg > --- UTILITY ---------- Huge Storage Unit Seismic Detector > --- WEAPON ----------- Assault Rifle Light Assault Rifle > --- INVENTORY -------- Light Ion Engine Light Ion Engine Light Treads Medium Matter Pod Seismic Detector Light Assault Rifle Grenade Launcher Grenade Launcher Grenade Launcher Grenade Launcher [Rating: 8] Favorites ----------- Power Ion Engine Engine Ion Engine Propulsion Aluminum Leg Treads Light Treads Leg Aluminum Leg Utility Seismic Detector Device Seismic Detector Storage Huge Storage Unit Weapon Assault Rifle Ballistic Gun Assault Rifle Build | -11 -10 ------- Run | Yrd Mat Slots Evolved . | . . Power . | . . Propulsion . | . . Utility . | . . Weapon . | . . Parts Attached 10 | 7 3 Power 1 | 1 . Engine 1 | 1 . Core . | . . Reactor . | . . Propulsion 4 | 2 2 Treads 2 | 2 . Leg 2 | . 2 Wheel . | . . Hover . | . . Flight . | . . Utility 3 | 2 1 Device 1 | 1 . Storage 2 | 1 1 Processor . | . . Hackware . | . . Protection . | . . Artifact . | . . Weapon 2 | 2 . Energy Gun . | . . Energy Cannon . | . . Ballistic Gun 2 | 2 . Ballistic Cannon . | . . Launcher . | . . Special Weapon . | . . Impact Weapon . | . . Slashing Weapon . | . . Piercing Weapon . | . . Special Melee Weapon . | . . Unidentified Prototypes . | . . Parts Lost 7 | . 7 Power 1 | . 1 Propulsion 3 | . 3 Utility 1 | . 1 Weapon 2 | . 2 Highest Loss Streak 6 | . 6 To Critical Strikes . | . . Average Slot Usage (%) 95 | . 95 Engine 12 | . 12 Treads 4 | . 4 Leg 21 | . 21 Device 13 | . 13 Storage 14 | . 14 Ballistic Gun 26 | . 26 Peak Build Rating 8 | 7 8 Average Rating 6 | 4 7 On Entrance 3 | . 7 Naked Turns . | . . Heaviest Build 89 | 14 89 Greatest Support 40 | 40 40 Greatest Overweight (x) 27 | . 27 Average Overweight (x) 2 | . 3 Largest Inventory Capacity 25 | 8 25 Average Capacity 20 | 7 21 Most Carried 10 | 5 10 Average Carried 6 | 1 6 Final Capacity 25 | 8 25 Final Carried 10 | 1 10 Class Distribution -------------------- 100% | Mutant Dominant Class ---------------- Mutant | -10/Materials Resources | -11 -10 ----------- Run | Yrd Mat Matter Collected 400 | 238 162 Remotely . | . . Salvage Created 217 | 16 201 Parts 17 | 3 14 Haulers Intercepted . | . . Recyclers Shooed . | . . Parts Field Recycled . | . . Retrieved Matter . | . . Parts Self-Destructed . | . . Prevented . | . . Kills | -11 -10 ------- Run | Yrd Mat Combat Hostiles Destroyed 10 | . 10 Guns 10 | . 10 Classes Destroyed 3 | 1 2 Tunneler 1 | 1 . Swarmer 8 | . 8 Grunt 2 | . 2 Best Kill Streak 4 | 1 4 Combat Bots Only 4 | . 4 Max Kills in Single Turn 1 | 1 1 Gunslinging . | . . Exploded . | . . Melee . | . . Uniques/NPCs Destroyed . | . . Combat | -11 -10 -------- Run | Yrd Mat Hostile Shots Fired 120 | . 120 Missed 34 | . 34 Damage Taken 926 | . 926 Core 253 | . 253 Absorbed by Shields . | . . Core Remaining (%) 100 | 100 . Volleys Fired 43 | 2 41 Largest 2 | 2 2 Hottest 40 | 40 40 Shots Fired 86 | 4 82 Gun 86 | 4 82 Cannon . | . . Launcher . | . . Special . | . . Kinetic 86 | 4 82 Thermal . | . . Explosive . | . . Electromagnetic . | . . Robot Hit Streak 5 | 3 5 Robot Miss Streak 5 | . 5 Penetration Max . | . . Secondary Targets 2 | . 2 Max Gunslinging Chain 1 | . 1 Shots Hit Robots 45 | 3 42 Core Hits 19 | 1 18 Critical Kills . | . . Critical Parts Destroyed . | . . Critical Strikes . | . . Melee Attacks . | . . Impact . | . . Slashing . | . . Piercing . | . . Sneak Attacks . | . . Combat Hostiles . | . . Follow-up Attacks . | . . Damage Inflicted 437 | 33 404 Guns 437 | 33 404 Cannons . | . . Explosions . | . . Melee . | . . Ramming . | . . Kinetic 437 | 33 404 Thermal . | . . Explosive . | . . Electromagnetic . | . . Impact . | . . Slashing . | . . Piercing . | . . Highest Corruption . | . . Average Corruption . | . . Corruption Purged . | . . Corruption Blocked . | . . Overload Shots . | . . Overflow Damage . | . . Projectiles . | . . Explosions . | . . Melee . | . . Knockbacks . | . . Impact . | . . Kinetic . | . . Secondary . | . . Self-Inflicted Damage . | . . Shots . | . . Rammed . | . . Targets Rammed . | . . Kicked . | . . Crushed . | . . Highest Temperature 6 | . 6 Average Temperature 5 | . 5 Received Heat Transfer 378 | . 378 Siege Activations . | . . Robots Corrupted . | . . Combat Hostiles . | . . Parts Fried . | . . Impact Corruptions . | . . Robots Melted . | . . Combat Hostiles . | . . Parts Melted . | . . Heat Transferred . | . . Parts Sabotaged . | . . Parts Stolen . | . . Parts Stripped . | . . Power Chain Reactions . | . . Alert | -11 -10 ------- Run | Yrd Mat Peak Influence 343 | 5 343 Initial 3 | . 3 Average 129 | 1 140 Maximum Alert Level 1 | . 1 Low Security (%) 74 | 100 72 Level 1 25 | . 27 Level 2 . | . . Level 3 . | . . Level 4 . | . . Level 5 . | . . High Security . | . . Max Security . | . . Squads Dispatched 1 | . 1 Investigation . | . . Extermination . | . . Reinforcement 1 | . 1 Assault . | . . Garrison . | . . Intercept . | . . Searches Triggered . | . . Construction Impeded . | . . Haulers Reinforced . | . . Active Scanning Responses . | . . Cargo Convoy Interrupts . | . . Stealth | -11 -10 --------- Run | Yrd Mat Distress Signals 2 | . 2 Communications Jammed . | . . Distress Signals . | . . Times Spotted 28 | . 28 Peak Tracking Total 4 | . 4 Tactical Retreats 3 | . 3 Traps | -11 -10 ------- Run | Yrd Mat Traps Triggered . | . . Indirectly . | . . Trap Hack Attempts . | . . Triggered . | . . Disarmed . | . . Reprogrammed . | . . Reused . | . . Traps Extracted . | . . Installed . | . . Triggered . | . . Machines | -11 -10 ---------- Run | Yrd Mat Machines Disabled . | . . Max in Single Turn . | . . Machines Repaired . | . . Machines Dismantled . | . . Machines Sabotaged . | . . Overloaded Fab Kills . | . . Hacking | -11 -10 --------- Run | Yrd Mat Machines Accessed 1 | . 1 Terminals 1 | . 1 Fabricators . | . . Repair Stations . | . . Recycling Units . | . . Scanalyzers . | . . Garrison Access . | . . Total Hacks 2 | . 2 Successful 1 | . 1 Failed 1 | . 1 Catastrophic 1 | . 1 Database Lockouts . | . . Manual . | . . Terminals 2 | . 2 Fabricators . | . . Repair Stations . | . . Recycling Units . | . . Scanalyzers . | . . Garrison Access . | . . Terminal Hacks 1 | . 1 Branch Access Points 1 | . 1 Fabricator Hacks . | . . Repair Station Hacks . | . . Recycling Unit Hacks . | . . Scanalyzer . | . . Garrison Access Hacks . | . . Unauthorized Hacks . | . . Terminals . | . . Fabricators . | . . Repair Stations . | . . Recycling Units . | . . Scanalyzers . | . . Garrison Access . | . . Data Cores Recovered . | . . Used . | . . Hacking Detections 1 | . 1 Full Trace Events 1 | . 1 Feedback Events . | . . Feedback Blocked . | . . Robot Schematics Acquired . | . . Robots Built . | . . Authchips . | . . Time . | . . Total Robot Build Rating . | . . Part Schematics Acquired . | . . Parts Built . | . . Authchips . | . . Time . | . . Total Part Build Rating . | . . Parts Repaired . | . . Time . | . . Parts Recycled . | . . Recycled Matter . | . . Retrieved Matter . | . . Retrieved Components . | . . Parts Scanalyzed . | . . Part Schematics Acquired . | . . Parts Damaged . | . . Bothacking | -11 -10 ------------ Run | Yrd Mat Used RIF Installer . | . . Robots Hacked . | . . Non-combat . | . . Combat . | . . Robot Hacks Applied . | . . Relay Couplers Released . | . . Fabnet Peak Effective % . | . . Robots Rewired . | . . Allies Hacked . | . . Hacks Repelled . | . . Allies | -11 -10 -------- Run | Yrd Mat Total Allies . | . . Largest Group . | . . Highest-Rated Group . | . . Highest-Rated Ally . | . . Total Orders . | . . Ally Attacks . | . . Total Damage . | . . Kills . | . . Allies Corrupted . | . . Allies Melted . | . . Intel | -11 -10 ------- Run | Yrd Mat Robot Analysis Total . | . . Derelict Logs Recovered . | . . Drone Launches . | . . Drone Recoveries . | . . Exploration | -11 -10 ------------- Run | Yrd Mat Turns Passed 1109 | 84 1025 Spaces Moved 303 | 54 249 Core 22 | 19 3 Treads 91 | 35 56 Legs 190 | . 190 Wheels . | . . Hover . | . . Flight . | . . Fastest Speed 50 | 50 160 Average Speed 315 | 121 357 Slowest Speed 1400 | 160 1400 Overloaded Moves . | . . Propulsion Burnouts . | . . Robots Hopped . | . . Cave-ins Triggered . | . . Exploration Rate (%) 12 | 5 19 Regions Visited 1 Branch Regions . Pre-discovered Areas . | . . Known Exits Taken . | . . Unknown Exits Taken 1 | 1 . Scrap Searched . | . . Spaces Dug . | . . Terrain Destroyed . | . . Melee . | . . Projectile . | . . AOE . | . . Terrain Rammed . | . . Walls Destroyed . | . . Machines Disabled . | . . Actions | -11 -10 --------- Run | Yrd Mat Total 379 | 68 311 Wait 6 | . 6 Move 302 | 53 249 Hop . | . . Pick Up 17 | 6 11 Fast Attach 2 | 2 . Attach 6 | 5 1 Detach . | . . Swap 2 | . 2 Drop 1 | . 1 Fire 43 | 2 41 Melee . | . . Ram . | . . Kick . | . . Crush . | . . Escape Stasis . | . . Rewire . | . . Trap . | . . Miscellaneous . | . . Route ------- -11/Scrapyard -10/Materials (discovered 1 exit: Min) History --------- Turn | Location | Event 7 | -11/Scrapyard | Discovered new exit (range 15) 85 | -11/Scrapyard | Entered Materials 311 | -10/Materials | Build established: Mutant 620 | -10/Materials | Identified exit to Mines 1080 | -10/Materials | Core integrity fell below 50% 1092 | -10/Materials | Core integrity fell below 20% 1110 | -10/Materials | Destroyed by G-47 Trooper with Particle Gun Last Messages --------------- Acquired 13 matter. R-06 Scavenger collects Flight Unit. Acquired Lgt. Assault Rifle. Acquired 13 matter. K-01 Serf collects debris. Acquired 16 matter. Acquired Seismic Detector. Connecting with Terminal... Current location identified: Materials >>Access(Branch) Found 1 branch access point: (66,13) Mines Map updated. Acquired Grenade Launcher. Ion Engine destroyed. Critical hit (Burn: +37). Lgt. Assault Rifle destroyed. Aluminum Leg destroyed. Assault Rifle destroyed. Seismic Detector destroyed. Map ----- +----------------------------------------------------+ | ?????????????????????" #??????????????????????? | | ????????????????# ???" #??????????????????????? | | ????????????????# ?? #??????????????????????? | | ????????????????# #??????????????????????? | | ????????????????# """ #??????????????????????? | | ????????????????# """ #??????????????????????? | | ????????????????# """ #?????#? #????????????? | | ??????????????### #####T# #????????????? | | ??????????????? ! #????????????? | | ????????????????? #????????????? | | ??????????????????? #????????????? | | ????????????????????# #????????????? | | ????????????????????# #????????????? | | ????????????????????## #######?????????????????? | | ?????????????????????# #????????? ???????????? | | ?????????????????????# #????????? ???????????? | | ?????????????????????# #????????? ???????????? | | ?????????????????????# #????????? ???????????? | | ?????????????????????# #???"" ??? ???????????? | | ?????????????????????# #??"""" ?? ???????????? | | ?????????????????????# #??"""" # ????????????? | | ?????????????????????# #?""""" # ????????????? | | ?????????????????????# #? """ # ????????????? | | ?????????????????????# kg# ]# ????????????? | | ?????????????????????# g# # ????????????? | | ?????????????????????# @ # ????????????? | | ?????????????????????# ##########%#????????????? | | ?????????????????????# ########## #????????????? | | ?????????????????????# # # #????????????? | | ?????????????????????# + + #????????????? | | ?????????????????????# # | #[#????????????? | | ?????????????????????# # |!! #%#????????????? | | ?????????????????????# # !! #=#????????????? | | ??????????????######## # """ # #????????????? | | ??????????????#! # # """ # #????????????? | | ??????????????# # + """ # #????????????? | | ??????????????# ! # # # #????????????? | | ??????????????# ! # ####+##### #????????????? | | ??????????????# # #???# #????????????? | | ??????????????# # ##### #????????????? | | ??????????????##+##+## #????????????? | | ???????????????# ####### #????????????? | | ???????????######## #?????# #????????????? | | ???????????# ## ####??###### #????????????? | | ???????????# # #???????# #????????????? | | ???????????# # ######### ####????????????? | | ???????????# " + T #???????????????? | | ???????????# T # ###########???????????????? | | ???????????# " # #?????????????????????????? | | ???????????# #######?????????????????????????? | +----------------------------------------------------+ Best States ------------- Heat Dissipation 25 Energy Generation 10 Energy Capacity 250 Matter Stores 270 Matter Capacity 300 Sight Range 16 Terrain Scan Density 10 Evasion (%) 50 Recoil Reduction 2 Item Schematics ----------------- None Robot Schematics ------------------ None Fabricated ------------ Nothing Alien Tech Used ----------------- None Achievements -------------- None Challenges ------------ None Game ------ Seed SmallPotentialPerforator Manual? 0 Play Time 00:05:09 Cumulative 2.6 hours Start 2025.01.11 @ 15:58:43 End 2025.01.11 @ 16:09:54 Sessions 1 Manual Loads 0 Difficulty Rogue Special Mode None Game No. 7 Rogue 7 Adventurer 0 Explorer 0 Win Type - Total 0 Types 0/0/0/0/0/0/0/0/0 Lore% 8 Gallery% 4 Achievement% 8 Wizard Run 0 Options --------- Layout 1 ASCII 0 Keyboard 0 Movement Mouse Keybinds 0 Fullscreen 2 Font 32/SmallcapsGlow Map View 50x35 Zoom Use 0% Tactical HUD 0 Map Filters NONE Filters NONE Steam 1 RUN: 98e1e5b9-7fcb-4d70-8c79-3cc513037449